fUSD/lending_fUSD_20240919
["ID","MTS","AMOUNT","RATE_DAILY","PERIOD"]
[338555367,1726732254140,-219.0,0.00013808,2]
[338555368,1726732254150,-289.851,0.00013808,2]
[338555369,1726732254160,-150.299,0.00013808,2]
[338555370,1726732254169,-190.924,0.00013808,2]
[338555371,1726732254180,-13487.0,0.00013808,2]
[338555372,1726732254191,-200.0,0.00013808,2]
[338555373,1726732254201,-1146.0,0.00013808,2]
[338555374,1726732254211,-287.096,0.00013808,2]
[338555375,1726732254221,-150.0,0.00013808,2]
[338555376,1726732254231,-1080.0,0.00013808,2]
[338555377,1726732254241,-634.0,0.00013839,2]
[338555378,1726732254252,-331.68886943,0.00013873,2]
[338555379,1726732254263,-500.0,0.00013873,2]
[338555380,1726732254273,-500.0,0.00013884,2]
[338555381,1726732254283,-673.44,0.00013884,2]
[338555382,1726732254296,-500.0,0.00013884,2]
[338555383,1726732254306,-1243.1,0.00013884,2]
[338555384,1726732254316,-982.28,0.00013884,2]
[338555385,1726732254326,-500.0,0.00013884,2]
[338555386,1726732254336,-500.0,0.00013884,2]
[338555387,1726732254346,-862.5,0.00013884,2]
[338555388,1726732254356,-1402.12,0.00013884,2]
[338555389,1726732254366,-639.22,0.00013884,2]
[338555390,1726732254376,-557.76,0.00013884,2]
[338555391,1726732254387,-500.0,0.00013884,2]
[338555392,1726732254396,-717.81,0.00013884,2]
[338555393,1726732254407,-500.0,0.00013884,2]
[338555394,1726732254417,-500.0,0.00013884,2]
[338555395,1726732254426,-500.0,0.00013884,2]
[338555396,1726732254437,-500.0,0.00013884,2]
[338555397,1726732254447,-500.0,0.00013884,2]
[338555398,1726732254459,-586.57,0.00013884,2]
[338555399,1726732254469,-756.99,0.00013884,2]
[338555400,1726732254482,-500.0,0.00013884,2]
[338555401,1726732254494,-500.0,0.00013884,2]
[338555402,1726732254505,-500.0,0.00013884,2]
[338555403,1726732254515,-906.36,0.00013884,2]
[338555404,1726732254525,-1240.18,0.00013884,2]
[338555405,1726732254537,-672.73,0.00013884,2]
[338555406,1726732254547,-596.05,0.00013884,2]
[338555407,1726732254557,-500.0,0.00013884,2]
[338555408,1726732254567,-545.89,0.00013884,2]
[338555409,1726732254577,-500.0,0.00013884,2]
[338555410,1726732254588,-500.0,0.00013884,2]
[338555411,1726732254598,-500.0,0.00013884,2]
[338555412,1726732254608,-500.0,0.00013884,2]
[338555413,1726732254617,-728.38,0.00013884,2]
[338555414,1726732254627,-500.0,0.00013884,2]
[338555415,1726732254637,-500.0,0.00013884,2]
[338555416,1726732254647,-658.72,0.00013884,2]
[338555417,1726732254656,-519.0,0.00013884,2]
[338555418,1726732254667,-778.27,0.00013884,2]
[338555419,1726732254676,-500.0,0.00013884,2]
[338555420,1726732254686,-500.0,0.00013884,2]
[338555421,1726732254696,-500.0,0.00013884,2]
[338555422,1726732254705,-500.0,0.00013884,2]
[338555423,1726732254715,-500.0,0.00013884,2]
[338555424,1726732254725,-1008.59,0.00013884,2]
[338555425,1726732254735,-500.0,0.00013884,2]
[338555426,1726732254745,-718.9,0.00013884,2]
[338555427,1726732254755,-500.0,0.00013884,2]
[338555428,1726732254765,-4085.3,0.00013884,2]
[338555429,1726732254776,-500.0,0.00013884,2]
[338555430,1726732254787,-500.0,0.00013884,2]
[338555431,1726732254797,-584.37,0.00013884,2]
[338555432,1726732254807,-500.0,0.00013884,2]
[338555433,1726732254817,-500.0,0.00013884,2]
[338555434,1726732254829,-500.0,0.00013884,2]
[338555435,1726732254840,-500.0,0.00013884,2]
[338555436,1726732254854,-500.0,0.00013884,2]
[338555437,1726732254864,-2428.34,0.00013884,2]
[338555438,1726732254874,-500.0,0.00013884,2]
[338555439,1726732254884,-547.42,0.00013884,2]
[338555440,1726732254894,-159.94282772,0.00013884,2]
[338555441,1726732254903,-723.1,0.00013884,2]
[338555442,1726732254913,-517.64,0.00013884,2]
[338555443,1726732254923,-694.44,0.00013884,2]
[338555444,1726732254933,-6022.09,0.00013884,2]
[338555445,1726732254943,-784.32,0.00013884,2]
[338555446,1726732254952,-1042.29,0.00013884,2]
[338555447,1726732254963,-500.0,0.00013884,2]
[338555448,1726732254973,-500.0,0.00013884,2]
[338555449,1726732254982,-500.0,0.00013884,2]
[338555450,1726732254992,-870.34,0.00013884,2]
[338555451,1726732255004,-842.63,0.00013884,2]
[338555452,1726732255014,-502.74,0.00013884,2]
[338555453,1726732255024,-500.0,0.00013884,2]
[338555454,1726732255034,-599.18,0.00013884,2]
[338555455,1726732255045,-1280.12,0.00013884,2]
[338555456,1726732255055,-500.0,0.00013884,2]
[338555457,1726732255064,-500.0,0.00013884,2]
[338555458,1726732255075,-1131.1,0.00013884,2]
[338555459,1726732255086,-1402.14,0.00013884,2]
[338555460,1726732255096,-1347.02,0.00013884,2]
[338555461,1726732255106,-500.0,0.00013884,2]
[338555462,1726732255115,-628.39,0.00013884,2]
[338555463,1726732255126,-907.55,0.00013884,2]
[338555464,1726732255136,-500.0,0.00013884,2]
[338555465,1726732255146,-1233.42,0.00013884,2]
[338555466,1726732255157,-280.33918029,0.00013884,2]
[338555467,1726732255167,-500.0,0.00013884,2]
[338555468,1726732255176,-500.0,0.00013884,2]
[338555469,1726732255186,-619.95,0.00013884,2]
[338555470,1726732255196,-500.0,0.00013884,2]
[338555471,1726732255205,-500.0,0.00013884,2]
[338555472,1726732255215,-1504.17,0.00013884,2]
[338555473,1726732255224,-500.0,0.00013884,2]
[338555474,1726732255233,-500.0,0.00013884,2]
[338555475,1726732255243,-500.0,0.00013884,2]
[338555476,1726732255253,-1372.29,0.00013884,2]
[338555477,1726732255262,-3332.6,0.00013884,2]
[338555478,1726732255273,-1755.32,0.00013884,2]
[338555479,1726732255282,-500.0,0.00013884,2]
[338555480,1726732255302,-2237.52,0.00013884,2]
[338555481,1726732255311,-500.0,0.00013884,2]
[338555482,1726732255321,-500.0,0.00013884,2]
[338555483,1726732255331,-500.0,0.00013884,2]
[338555484,1726732255340,-1400.09,0.00013884,2]
[338555485,1726732255349,-500.0,0.00013884,2]
[338555486,1726732255359,-500.0,0.00013884,2]
[338555487,1726732255368,-2058.1,0.00013884,2]
[338555488,1726732255379,-1344.07,0.00013884,2]
[338555489,1726732255390,-568.11,0.00013884,2]
[338555490,1726732255400,-725.32,0.00013884,2]
[338555491,1726732255409,-1266.88,0.00013884,2]
[338555492,1726732255419,-607.02,0.00013884,2]
[338555493,1726732255428,-773.5,0.00013884,2]
[338555494,1726732255437,-2144.96,0.00013884,2]
[338555495,1726732255447,-500.0,0.00013884,2]
[338555496,1726732255456,-707.1,0.00013884,2]
[338555497,1726732255466,-1791.75,0.00013884,2]
[338555498,1726732255475,-610.73,0.00013884,2]
[338555499,1726732255485,-1226.59,0.00013884,2]
[338555500,1726732255585,-500.0,0.00013884,2]
[338555501,1726732255595,-1499.27,0.00013884,2]
[338555502,1726732255605,-1218.65,0.00013884,2]
[338555503,1726732255614,-500.0,0.00013884,2]
[338555504,1726732255623,-1490.06,0.00013884,2]
[338555505,1726732255633,-981.47,0.00013884,2]
[338555506,1726732255643,-500.0,0.00013884,2]
[338555507,1726732255652,-689.16,0.00013884,2]
[338555508,1726732255661,-500.0,0.00013884,2]
[338555509,1726732255671,-500.0,0.00013884,2]
[338555510,1726732255680,-4015.97,0.00013884,2]
[338555511,1726732255689,-500.0,0.00013884,2]
[338555512,1726732255698,-500.0,0.00013884,2]
[338555513,1726732255708,-500.0,0.00013884,2]
[338555514,1726732255718,-500.0,0.00013884,2]
[338555515,1726732255728,-534.73,0.00013884,2]
[338555516,1726732255737,-1873.31,0.00013884,2]
[338555517,1726732255747,-1649.35,0.00013884,2]
[338555518,1726732255755,-2518.22,0.00013884,2]
[338555519,1726732255765,-951.55,0.00013884,2]
[338555520,1726732255774,-961.38,0.00013884,2]
[338555521,1726732255783,-838.34,0.00013884,2]
[338555522,1726732255796,-500.0,0.00013884,2]
[338555523,1726732255806,-2656.04,0.00013884,2]
[338555524,1726732255815,-1102.89,0.00013884,2]
[338555525,1726732255824,-538.09,0.00013884,2]
[338555526,1726732255837,-614.44,0.00013884,2]
[338555527,1726732255845,-500.0,0.00013884,2]
[338555528,1726732255854,-500.0,0.00013884,2]
[338555529,1726732255864,-1240.77,0.00013884,2]
[338555530,1726732255875,-500.0,0.00013884,2]
[338555531,1726732255884,-500.0,0.00013884,2]
[338555532,1726732255893,-886.35,0.00013884,2]
[338555533,1726732255902,-953.58,0.00013884,2]
[338555534,1726732255912,-661.25,0.00013884,2]
[338555535,1726732255922,-514.5,0.00013884,2]
[338555536,1726732255931,-631.07,0.00013884,2]
[338555537,1726732255940,-500.0,0.00013884,2]
[338555538,1726732255950,-716.29,0.00013884,2]
[338555539,1726732255958,-500.0,0.00013884,2]
[338555540,1726732255968,-500.0,0.00013884,2]
[338555541,1726732255976,-500.0,0.00013884,2]
[338555542,1726732255985,-605.28214245,0.00013884,2]
[338555543,1726732255994,-1113.9,0.00013884,2]
[338555544,1726732256004,-1295.39,0.00013884,2]
[338555545,1726732256013,-500.0,0.00013884,2]
[338555546,1726732256024,-500.0,0.00013884,2]
[338555547,1726732256033,-500.0,0.00013884,2]
[338555548,1726732256045,-686.32,0.00013884,2]
[338555549,1726732256054,-500.0,0.00013884,2]
[338555550,1726732256064,-1117.17,0.00013884,2]
[338555551,1726732256073,-500.0,0.00013884,2]
[338555552,1726732256082,-1504.63,0.00013884,2]
[338555553,1726732256091,-1973.3,0.00013884,2]
[338555554,1726732256101,-500.0,0.00013884,2]
[338555555,1726732256111,-500.0,0.00013884,2]
[338555556,1726732256121,-159.53480384,0.00013885,2]
[338555557,1726732256130,-150.16,0.0001389,2]
[338555558,1726732256139,-4500.0,0.000139,5]
[338555559,1726732256148,-276932.074084,0.000139,2]
[338555560,1726732256157,-211.96,0.00013917,2]
[338555561,1726732256166,-3400.98670077,0.00013917,2]
[338555562,1726732256175,-339.07182377,0.00013952,2]
[338555563,1726732256184,-3307.6,0.00013972,14]
[338555564,1726732256193,-3307.6,0.00013972,14]
[338555565,1726732256203,-3307.6,0.00013972,14]
[338555566,1726732256211,-3307.6,0.00013972,14]
[338555567,1726732256221,-3307.6,0.00013972,14]
[338555568,1726732256230,-3307.6,0.00013972,14]
[338555569,1726732256240,-3307.6,0.00013972,14]
[338555570,1726732256249,-3307.6,0.00013972,14]
[338555571,1726732256258,-3307.6,0.00013972,14]
[338555572,1726732256267,-3307.6,0.00013972,14]
[338555573,1726732256276,-3307.6,0.00013972,14]
[338555574,1726732256286,-3307.6,0.00013972,14]
[338555575,1726732256296,-151.219153,0.00013973,2]
[338555576,1726732256306,-357.86,0.00013973,2]
[338555577,1726732256315,-500.0,0.00013985,2]
[338555578,1726732256324,-500.0,0.00013985,2]
[338555579,1726732256333,-500.0,0.00013985,2]
[338555580,1726732256343,-500.0,0.00013985,2]
[338555581,1726732256352,-500.0,0.00013985,2]
[338555582,1726732256361,-500.0,0.00013985,2]
[338555583,1726732256370,-500.0,0.00013985,2]
[338555584,1726732256379,-511.73,0.00013985,2]
[338555585,1726732256388,-556.86,0.00013985,2]
[338555586,1726732256398,-500.0,0.00013985,2]
[338555587,1726732256407,-500.0,0.00013985,2]
[338555588,1726732256416,-500.0,0.00013985,2]
[338555589,1726732256425,-500.0,0.00013985,2]
[338555590,1726732256434,-733.16,0.00013985,2]
[338555591,1726732256443,-500.0,0.00013985,2]
[338555592,1726732256452,-450.23050384,0.00013985,2]
[338555593,1726732256462,-500.0,0.00013985,2]
[338555594,1726732256471,-513.56,0.00013985,2]
[338555595,1726732256480,-500.0,0.00013985,2]
[338555596,1726732256490,-500.0,0.00013985,2]
[338555597,1726732256499,-500.0,0.00013985,2]
[338555598,1726732256511,-450.58193558,0.00013985,2]
[338555599,1726732256519,-500.0,0.00013985,2]
[338555600,1726732256529,-500.0,0.00013985,2]
[338555601,1726732256542,-500.0,0.00013985,2]
[338555602,1726732256551,-500.0,0.00013985,2]
[338555603,1726732256561,-500.0,0.00013985,2]
[338555604,1726732256570,-500.0,0.00013985,2]
[338555605,1726732256580,-500.0,0.00013985,2]
[338555606,1726732256590,-500.0,0.00013985,2]
[338555607,1726732256599,-500.0,0.00013985,2]
[338555608,1726732256608,-591.17,0.00013985,2]
[338555609,1726732256619,-500.0,0.00013985,2]
[338555610,1726732256629,-500.0,0.00013985,2]
[338555611,1726732256640,-500.0,0.00013985,2]
[338555612,1726732256652,-500.0,0.00013985,2]
[338555613,1726732256662,-500.0,0.00013985,2]
[338555614,1726732256672,-500.0,0.00013985,2]
[338555615,1726732256683,-696.61,0.00013985,2]
[338555616,1726732256693,-500.0,0.00013985,2]
[338555617,1726732256702,-500.0,0.00013985,2]
[338555618,1726732256713,-539.18,0.00013985,2]
[338555619,1726732256723,-500.0,0.00013985,2]
[338555620,1726732256733,-500.0,0.00013985,2]
[338555621,1726732256743,-500.0,0.00013985,2]
[338555622,1726732256752,-717.13,0.00013985,2]
[338555623,1726732256761,-701.24,0.00013985,2]
[338555624,1726732256771,-500.0,0.00013985,2]
[338555625,1726732256781,-544.0,0.00013985,2]
[338555626,1726732256793,-941.85,0.00013985,2]
[338555627,1726732256803,-500.0,0.00013985,2]
[338555628,1726732256813,-450.1562753,0.00013985,2]
[338555629,1726732256823,-500.0,0.00013985,2]
[338555630,1726732256838,-500.0,0.00013985,2]
[338555631,1726732256847,-500.0,0.00013985,2]
[338555632,1726732256857,-500.0,0.00013985,2]
[338555633,1726732256866,-500.0,0.00013985,2]
[338555634,1726732256875,-700.0,0.00013985,2]
[338555635,1726732256885,-500.0,0.00013985,2]
[338555636,1726732256894,-500.0,0.00013985,2]
[338555637,1726732256903,-504.44,0.00013985,2]
[338555638,1726732256913,-581.983199,0.00013985,2]
[338555639,1726732256923,-500.0,0.00013985,2]
[338555640,1726732256932,-500.0,0.00013985,2]
[338555641,1726732256942,-561.64,0.00013985,2]
[338555642,1726732256951,-500.0,0.00013985,2]
[338555643,1726732256960,-969.61,0.00013985,2]
[338555644,1726732256969,-858.02,0.00013985,2]
[338555645,1726732256978,-3307.6,0.00013985,14]
[338555646,1726732256987,-3307.6,0.00013985,14]
[338555647,1726732256996,-500.0,0.00013985,2]
[338555648,1726732257005,-896.77,0.00013985,2]
[338555649,1726732257014,-500.0,0.00013985,2]
[338555650,1726732257023,-674.18,0.00013985,2]
[338555651,1726732257032,-500.0,0.00013985,2]
[338555652,1726732257044,-500.0,0.00013985,2]
[338555653,1726732257053,-643.3,0.00013985,2]
[338555654,1726732257063,-500.0,0.00013985,2]
[338555655,1726732257071,-993.4,0.00013985,2]
[338555656,1726732257081,-500.0,0.00013985,2]
[338555657,1726732257090,-500.0,0.00013985,2]
[338555658,1726732257099,-1258.28,0.00013985,2]
[338555659,1726732257108,-677.15,0.00013985,2]
[338555660,1726732257118,-1044.68,0.00013985,2]
[338555661,1726732257127,-705.18,0.00013985,2]
[338555662,1726732257136,-500.0,0.00013985,2]
[338555663,1726732257146,-500.0,0.00013985,2]
[338555664,1726732257155,-812.59,0.00013985,2]
[338555665,1726732257169,-500.0,0.00013985,2]
[338555666,1726732257178,-593.93,0.00013985,2]
[338555667,1726732257188,-500.0,0.00013985,2]
[338555668,1726732257197,-500.0,0.00013985,2]
[338555669,1726732257206,-582.2,0.00013985,2]
[338555670,1726732257215,-819.35,0.00013985,2]
[338555671,1726732257225,-500.0,0.00013985,2]
[338555672,1726732257234,-500.0,0.00013985,2]
[338555673,1726732257244,-500.0,0.00013985,2]
[338555674,1726732257253,-565.94,0.00013985,2]
[338555675,1726732257262,-500.0,0.00013985,2]
[338555676,1726732257271,-500.0,0.00013985,2]
[338555677,1726732257280,-1613.08,0.00013985,2]
[338555678,1726732257292,-536.25,0.00013985,2]
[338555679,1726732257301,-725.28,0.00013985,2]
[338555680,1726732257311,-500.0,0.00013985,2]
[338555681,1726732257320,-500.0,0.00013985,2]
[338555682,1726732257329,-500.0,0.00013985,2]
[338555683,1726732257339,-500.0,0.00013985,2]
[338555684,1726732257348,-500.0,0.00013985,2]
[338555685,1726732257357,-855.03,0.00013985,2]
[338555686,1726732257366,-563.02245149,0.00013985,2]
[338555687,1726732257375,-500.0,0.00013985,2]
[338555688,1726732257385,-500.0,0.00013985,2]
[338555689,1726732257394,-500.0,0.00013985,2]
[338555690,1726732257403,-1132.22,0.00013985,2]
[338555691,1726732257412,-500.0,0.00013985,2]
[338555692,1726732257421,-500.0,0.00013985,2]
[338555693,1726732257430,-816.95,0.00013985,2]
[338555694,1726732257439,-500.0,0.00013985,2]
[338555695,1726732257448,-500.0,0.00013985,2]
[338555696,1726732257457,-500.0,0.00013985,2]
[338555697,1726732257466,-500.0,0.00013985,2]
[338555698,1726732257476,-500.0,0.00013985,2]
[338555699,1726732257486,-807.02,0.00013985,2]
[338555700,1726732257496,-500.0,0.00013985,2]
[338555701,1726732257505,-500.0,0.00013985,2]
[338555702,1726732257515,-728.77,0.00013985,2]
[338555703,1726732257525,-539.85,0.00013985,2]
[338555704,1726732257536,-500.0,0.00013985,2]
[338555705,1726732257546,-500.0,0.00013985,2]
[338555706,1726732257555,-572.27,0.00013985,2]
[338555707,1726732257565,-783.65,0.00013985,2]
[338555708,1726732257576,-500.0,0.00013985,2]
[338555709,1726732257588,-500.0,0.00013985,2]
[338555710,1726732257598,-500.0,0.00013985,2]
[338555711,1726732257608,-962.12,0.00013985,2]
[338555712,1726732257619,-500.0,0.00013985,2]
[338555713,1726732257628,-500.0,0.00013985,2]
[338555714,1726732257638,-545.57,0.00013985,2]
[338555715,1726732257647,-500.0,0.00013985,2]
[338555716,1726732257657,-500.0,0.00013985,2]
[338555717,1726732257668,-910.48,0.00013985,2]
[338555718,1726732257677,-979.92,0.00013985,2]
[338555719,1726732257687,-1433.4,0.00013985,2]
[338555720,1726732257696,-500.0,0.00013985,2]
[338555721,1726732257706,-500.0,0.00013985,2]
[338555722,1726732257716,-665.78,0.00013985,2]
[338555723,1726732257727,-638.34,0.00013985,2]
[338555724,1726732257737,-500.0,0.00013985,2]
[338555725,1726732257747,-500.0,0.00013985,2]
[338555726,1726732257756,-500.0,0.00013985,2]
[338555727,1726732257766,-500.0,0.00013985,2]
[338555728,1726732257776,-503.9,0.00013985,2]
[338555729,1726732257786,-500.0,0.00013985,2]
[338555730,1726732257796,-522.83,0.00013985,2]
[338555731,1726732257805,-500.0,0.00013985,2]
[338555732,1726732257814,-500.0,0.00013985,2]
[338555733,1726732257826,-500.0,0.00013985,2]
[338555734,1726732257839,-500.0,0.00013985,2]
[338555735,1726732257848,-500.0,0.00013985,2]
[338555736,1726732257858,-549.04,0.00013985,2]
[338555737,1726732257868,-500.0,0.00013985,2]
[338555738,1726732257878,-1979.64,0.00013985,2]
[338555739,1726732257888,-500.0,0.00013985,2]
[338555740,1726732257898,-500.0,0.00013985,2]
[338555741,1726732257908,-500.0,0.00013985,2]
[338555742,1726732257917,-653.65,0.00013985,2]
[338555743,1726732257927,-500.0,0.00013985,2]
[338555744,1726732257937,-418.29962654,0.00013985,2]
[338555745,1726732257946,-849.09,0.00013985,2]
[338555746,1726732257955,-500.0,0.00013985,2]
[338555747,1726732257965,-666.58,0.00013985,2]
[338555748,1726732257975,-500.0,0.00013985,2]
[338555749,1726732257984,-500.0,0.00013985,2]
[338555750,1726732257993,-500.0,0.00013985,2]
[338555751,1726732258003,-544.2,0.00013985,2]
[338555752,1726732258013,-617.41273256,0.00013985,2]
[338555753,1726732258023,-500.0,0.00013985,2]
[338555754,1726732258034,-500.0,0.00013985,2]
[338555755,1726732258045,-500.0,0.00013985,2]
[338555756,1726732258055,-500.0,0.00013985,2]
[338555757,1726732258064,-500.0,0.00013985,2]
[338555758,1726732258074,-500.0,0.00013985,2]
[338555759,1726732258083,-500.0,0.00013985,2]
[338555760,1726732258093,-500.0,0.00013985,2]
[338555761,1726732258102,-500.0,0.00013985,2]
[338555762,1726732258111,-500.0,0.00013985,2]
[338555763,1726732258120,-500.0,0.00013985,2]
[338555764,1726732258129,-500.0,0.00013985,2]
[338555765,1726732258139,-500.0,0.00013985,2]
[338555766,1726732258148,-500.0,0.00013985,2]
[338555767,1726732258158,-500.0,0.00013985,2]
[338555768,1726732258167,-500.0,0.00013985,2]
[338555769,1726732258176,-500.0,0.00013985,2]
[338555770,1726732258186,-500.0,0.00013985,2]
[338555771,1726732258195,-500.0,0.00013985,2]
[338555772,1726732258205,-500.0,0.00013985,2]
[338555773,1726732258214,-615.25,0.00013985,2]
[338555774,1726732258223,-6869.29733966,0.00014,2]
[338555775,1726732258234,-155.721163,0.00014,15]
[338555776,1726732258244,-420.0,0.00014015,2]
[338555777,1726732258255,-206.0,0.0001403,2]
[338555778,1726732258267,-500.0,0.00014077,2]
[338555779,1726732258278,-2000.0,0.00014077,2]
[338555780,1726732258290,-500.0,0.00014077,2]
[338555781,1726732258300,-500.0,0.00014077,2]
[338555782,1726732258309,-200.0,0.00014077,2]
[338555783,1726732258319,-159.53480383,0.00014088,2]
[338555784,1726732258328,-1042.0,0.000141,2]
[338555785,1726732258338,-500.0,0.00014158,2]
[338555786,1726732258347,-673.44,0.00014158,2]
[338555787,1726732258356,-500.0,0.00014158,2]
[338555788,1726732258364,-1243.1,0.00014158,2]
[338555789,1726732258374,-982.28,0.00014158,2]
[338555790,1726732258385,-500.0,0.00014158,2]
[338555791,1726732258396,-500.0,0.00014158,2]
[338555792,1726732258407,-862.5,0.00014158,2]
[338555793,1726732258418,-1402.12,0.00014158,2]
[338555794,1726732258428,-639.22,0.00014158,2]
[338555795,1726732258439,-557.76,0.00014158,2]
[338555796,1726732258449,-500.0,0.00014158,2]
[338555797,1726732258460,-717.81,0.00014158,2]
[338555798,1726732258470,-500.0,0.00014158,2]
[338555799,1726732258479,-500.0,0.00014158,2]
[338555800,1726732258488,-500.0,0.00014158,2]
[338555801,1726732258499,-500.0,0.00014158,2]
[338555802,1726732258508,-500.0,0.00014158,2]
[338555803,1726732258517,-586.57,0.00014158,2]
[338555804,1726732258526,-756.99,0.00014158,2]
[338555805,1726732258536,-500.0,0.00014158,2]
[338555806,1726732258548,-500.0,0.00014158,2]
[338555807,1726732258557,-500.0,0.00014158,2]
[338555808,1726732258567,-906.36,0.00014158,2]
[338555809,1726732258576,-1240.18,0.00014158,2]
[338555810,1726732258585,-672.73,0.00014158,2]
[338555811,1726732258595,-500.0,0.00014158,2]
[338555812,1726732258604,-545.89,0.00014158,2]
[338555813,1726732258613,-500.0,0.00014158,2]
[338555814,1726732258623,-500.0,0.00014158,2]
[338555815,1726732258632,-500.0,0.00014158,2]
[338555816,1726732258641,-500.0,0.00014158,2]
[338555817,1726732258651,-728.38,0.00014158,2]
[338555818,1726732258660,-500.0,0.00014158,2]
[338555819,1726732258669,-500.0,0.00014158,2]
[338555820,1726732258679,-658.72,0.00014158,2]
[338555821,1726732258688,-519.0,0.00014158,2]
[338555822,1726732258696,-778.27,0.00014158,2]
[338555823,1726732258706,-500.0,0.00014158,2]
[338555824,1726732258715,-500.0,0.00014158,2]
[338555825,1726732258725,-500.0,0.00014158,2]
[338555826,1726732258734,-500.0,0.00014158,2]
[338555827,1726732258745,-500.0,0.00014158,2]
[338555828,1726732258754,-1008.59,0.00014158,2]
[338555829,1726732258764,-500.0,0.00014158,2]
[338555830,1726732258774,-718.9,0.00014158,2]
[338555831,1726732258784,-500.0,0.00014158,2]
[338555832,1726732258795,-4085.3,0.00014158,2]
[338555833,1726732258805,-500.0,0.00014158,2]
[338555834,1726732258814,-500.0,0.00014158,2]
[338555835,1726732258824,-584.37,0.00014158,2]
[338555836,1726732258834,-500.0,0.00014158,2]
[338555837,1726732258843,-500.0,0.00014158,2]
[338555838,1726732258853,-500.0,0.00014158,2]
[338555839,1726732258862,-500.0,0.00014158,2]
[338555840,1726732258871,-500.0,0.00014158,2]
[338555841,1726732258881,-2428.34,0.00014158,2]
[338555842,1726732258890,-500.0,0.00014158,2]
[338555843,1726732258899,-547.42,0.00014158,2]
[338555844,1726732258908,-723.1,0.00014158,2]
[338555845,1726732258920,-517.64,0.00014158,2]
[338555846,1726732258930,-694.44,0.00014158,2]
[338555847,1726732258939,-6022.09,0.00014158,2]
[338555848,1726732258948,-784.32,0.00014158,2]
[338555849,1726732258958,-1042.29,0.00014158,2]
[338555850,1726732258967,-500.0,0.00014158,2]
[338555851,1726732258976,-500.0,0.00014158,2]
[338555852,1726732258987,-500.0,0.00014158,2]
[338555853,1726732258997,-870.34,0.00014158,2]
[338555854,1726732259008,-842.63,0.00014158,2]
[338555855,1726732259018,-502.74,0.00014158,2]
[338555856,1726732259028,-500.0,0.00014158,2]
[338555857,1726732259038,-599.18,0.00014158,2]
[338555858,1726732259050,-1280.12,0.00014158,2]
[338555859,1726732259060,-500.0,0.00014158,2]
[338555860,1726732259069,-500.0,0.00014158,2]
[338555861,1726732259078,-1131.1,0.00014158,2]
[338555862,1726732259087,-1402.14,0.00014158,2]
[338555863,1726732259097,-1347.02,0.00014158,2]
[338555864,1726732259107,-500.0,0.00014158,2]
[338555865,1726732259116,-628.39,0.00014158,2]
[338555866,1726732259125,-907.55,0.00014158,2]